Cogmind - Beta 14 @@@ ROGUE MODE // 2024.09.12 @ 09:35:07 Player: BionicBot Result: Destroyed by EU-DAR(R) with Subdweller Machine Gun Performance ------------- Evolutions (0) 0 Regions Visited (2) 400 Robots Destroyed (33) 165 Value Destroyed (573) 573 Prototype IDs (3) 60 Alien Tech Used (0) 0 Bonus (0) 0 TOTAL SCORE: 1198 Bonus ------- None Cogmind --------- Core Integrity 0/250 Matter 261/300 Energy 143/250 System Corruption 0% Temperature Cool (0) Movement Treading (240) Ox1 Location -10/Subcaves Parts ------- > --- POWER (1) -------- Ion Engine > --- PROPULSION (2) --- Light Treads > --- UTILITY (2) ------ Large Storage Unit Signal Interpreter > --- WEAPON (2) ------- Subdweller Laser Improved Assault Rifle > --- INVENTORY (15) --- Light Ion Engine Light Treads High-capacity Storage Unit Subdweller Optics Subdweller Optics Seismic Detector Light Armor Plating Light Armor Plating Light Armor Plating Shield Generator Shield Generator Rocket Launcher Multitool Peak State ------------ > --- POWER ------------ Ion Engine > --- PROPULSION ------- Light Treads Light Treads > --- UTILITY ---------- Small Storage Unit Seismic Detector > --- WEAPON ----------- EM Shotgun Improved Assault Rifle > --- INVENTORY -------- Light Ion Engine Light Ion Engine High-capacity Storage Unit Signal Interpreter Shield Generator Shield Generator Assault Rifle Light Assault Rifle [Rating: 11] Favorites ----------- Power Ion Engine Engine Ion Engine Propulsion Light Treads Treads Light Treads Utility Seismic Detector Device Seismic Detector Storage Large Storage Unit Processor Signal Interpreter Weapon EM Shotgun Energy Gun EM Shotgun Ballistic Gun Improved Assault Rifle Launcher Rocket Launcher Build | -11 -10 -10 ------- Run | Yrd Mat Sub Slots Evolved . | . . . Power . | . . . Propulsion . | . . . Utility . | . . . Weapon . | . . . Parts Attached 22 | 7 7 8 Power 2 | 1 1 . Engine 2 | 1 1 . Core . | . . . Reactor . | . . . Propulsion 3 | 2 1 . Treads 3 | 2 1 . Leg . | . . . Wheel . | . . . Hover . | . . . Flight . | . . . Utility 4 | 2 1 1 Device 1 | 1 . . Storage 2 | 1 1 . Processor 1 | . . 1 Hackware . | . . . Protection . | . . . Artifact . | . . . Weapon 13 | 2 4 7 Energy Gun 7 | 1 2 4 Energy Cannon . | . . . Ballistic Gun 4 | 1 2 1 Ballistic Cannon . | . . . Launcher 2 | . . 2 Special Weapon . | . . . Impact Weapon . | . . . Slashing Weapon . | . . . Piercing Weapon . | . . . Special Melee Weapon . | . . . Unidentified Prototypes 1 | . 1 . Parts Lost 4 | . 1 3 Power . | . . . Propulsion 1 | . . 1 Utility . | . . . Weapon 3 | . 1 2 Highest Loss Streak 3 | . 1 3 To Critical Strikes . | . . . Average Slot Usage (%) 99 | . 99 99 Engine 14 | . 14 14 Treads 27 | . 27 27 Device 10 | . 14 2 Storage 14 | . 14 14 Processor 3 | . . 11 Energy Gun 16 | . 14 23 Ballistic Gun 10 | . 14 2 Peak Build Rating 11 | 7 11 11 Average Rating 9 | 5 9 10 On Entrance 6 | . 7 11 Naked Turns . | . . . Heaviest Build 33 | 12 32 33 Greatest Support 40 | 40 40 40 Greatest Overweight (x) . | . . . Average Overweight (x) . | . . . Largest Inventory Capacity 15 | 8 15 15 Average Capacity 11 | 7 10 15 Most Carried 15 | 2 11 15 Average Carried 8 | 1 7 12 Final Capacity 15 | 8 15 15 Final Carried 13 | 2 11 13 Class Distribution -------------------- 100% | Mutant Dominant Class ---------------- Mutant | -10/Materials Mutant | -10/Subcaves Resources | -11 -10 -10 ----------- Run | Yrd Mat Sub Matter Collected 572 | 220 287 65 Remotely . | . . . Salvage Created 1137 | 113 899 125 Parts 75 | 10 56 9 Haulers Intercepted 2 | . 2 . Recyclers Shooed 1 | 1 . . Parts Field Recycled . | . . . Retrieved Matter . | . . . Parts Self-Destructed . | . . . Prevented . | . . . Kills | -11 -10 -10 ------- Run | Yrd Mat Sub Combat Hostiles Destroyed 20 | . 18 2 Guns 19 | . 17 2 AOE 1 | . 1 . Classes Destroyed 10 | 2 6 2 Worker 1 | . 1 . Builder 1 | . 1 . Tunneler 3 | 3 . . Hauler 2 | . 2 . Recycler 3 | 1 2 . Watcher 3 | . 3 . Swarmer 9 | . 9 . Grunt 9 | . 9 . Artisan 1 | . . 1 Subdweller 2 | . . 2 Best Kill Streak 5 | 2 5 1 Combat Bots Only 3 | . 3 1 Max Kills in Single Turn 2 | 1 2 1 Gunslinging . | . . . Exploded 1 | . 1 . Melee . | . . . Uniques/NPCs Destroyed . | . . . Combat | -11 -10 -10 -------- Run | Yrd Mat Sub Hostile Shots Fired 105 | . 71 34 Missed 39 | . 26 13 Damage Taken 863 | . 412 451 Core 252 | . 113 139 Absorbed by Shields . | . . . Regen/Repaired (Parts) 17 | . 17 . Core Remaining (%) 100 | 100 . . Volleys Fired 75 | 9 49 17 Largest 2 | 2 2 2 Hottest 105 | 60 68 105 Shots Fired 143 | 18 94 31 Gun 140 | 18 94 28 Cannon . | . . . Launcher 3 | . . 3 Special . | . . . Kinetic 60 | 9 49 2 Thermal 25 | 9 14 2 Explosive 3 | . . 3 Electromagnetic 55 | . 31 24 Robot Hit Streak 39 | 9 12 39 Robot Miss Streak 4 | 2 4 1 Penetration Max . | . . . Secondary Targets 2 | . 2 . Max Gunslinging Chain 1 | . 1 . Shots Hit Robots 100 | 11 64 25 Core Hits 49 | 5 36 8 Critical Kills 1 | . 1 . Critical Parts Destroyed . | . . . Critical Strikes 1 | . 1 . Destroy 1 | . 1 . Melee Attacks . | . . . Impact . | . . . Slashing . | . . . Piercing . | . . . Sneak Attacks . | . . . Combat Hostiles . | . . . Follow-up Attacks . | . . . Damage Inflicted 1327 | 136 998 193 Guns 1233 | 136 922 175 Cannons . | . . . Explosions 82 | . 64 18 Melee . | . . . Ramming 12 | . 12 . Kinetic 470 | 60 397 13 Thermal 259 | 76 165 18 Explosive 18 | . . 18 Electromagnetic 568 | . 424 144 Impact . | . . . Slashing . | . . . Piercing . | . . . Highest Corruption . | . . . Average Corruption . | . . . Corruption Purged . | . . . Corruption Blocked . | . . . Overload Shots . | . . . Overflow Damage . | . . . Projectiles . | . . . Explosions . | . . . Melee . | . . . Knockbacks . | . . . Impact . | . . . Kinetic . | . . . Secondary . | . . . Self-Inflicted Damage . | . . . Shots . | . . . Rammed 5 | . 5 . Targets Rammed 5 | . 5 . Kicked . | . . . Crushed . | . . . Highest Temperature 42 | . 42 1 Average Temperature 15 | . 15 1 Received Heat Transfer 162 | . 114 48 Siege Activations . | . . . Robots Corrupted . | . . . Combat Hostiles . | . . . Parts Fried 1 | . . 1 Impact Corruptions . | . . . Robots Melted . | . . . Combat Hostiles . | . . . Parts Melted 1 | . 1 . Heat Transferred 525 | 175 325 25 Parts Sabotaged . | . . . Parts Stolen . | . . . Parts Stripped . | . . . Power Chain Reactions 1 | . 1 . Alert | -11 -10 -10 ------- Run | Yrd Mat Sub Peak Influence 266 | 20 266 . Initial 13 | . 13 . Average 117 | 6 125 . Maximum Alert Level 1 | . 1 . Low Security (%) 87 | 100 86 . Level 1 12 | . 13 . Level 2 . | . . . Level 3 . | . . . Level 4 . | . . . Level 5 . | . . . High Security . | . . . Max Security . | . . . Squads Dispatched 6 | . 6 . Investigation 3 | . 3 . Extermination . | . . . Reinforcement 3 | . 3 . Assault . | . . . Garrison . | . . . Intercept . | . . . Searches Triggered . | . . . Construction Impeded . | . . . Haulers Reinforced . | . . . Active Scanning Responses . | . . . Cargo Convoy Interrupts . | . . . Stealth | -11 -10 -10 --------- Run | Yrd Mat Sub Distress Signals . | . . . Communications Jammed . | . . . Distress Signals . | . . . Times Spotted 28 | . 24 4 Peak Tracking Total 3 | . 3 2 Tactical Retreats . | . . . Traps | -11 -10 -10 ------- Run | Yrd Mat Sub Traps Triggered 2 | . 2 . Indirectly . | . . . Trap Hack Attempts . | . . . Triggered . | . . . Disarmed . | . . . Reprogrammed . | . . . Reused . | . . . Traps Extracted . | . . . Installed . | . . . Triggered . | . . . Machines | -11 -10 -10 ---------- Run | Yrd Mat Sub Machines Disabled . | . . . Max in Single Turn . | . . . Machines Repaired . | . . . Machines Dismantled . | . . . Machines Sabotaged . | . . . Overloaded Fab Kills . | . . . Hacking | -11 -10 -10 --------- Run | Yrd Mat Sub Machines Accessed 6 | . 6 . Terminals 5 | . 5 . Fabricators . | . . . Repair Stations 1 | . 1 . Recycling Units . | . . . Scanalyzers . | . . . Garrison Access . | . . . Total Hacks 14 | . 14 . Successful 7 | . 7 . Failed 7 | . 7 . Catastrophic 1 | . 1 . Database Lockouts . | . . . Manual 3 | . 3 . Terminals 11 | . 11 . Fabricators . | . . . Repair Stations 3 | . 3 . Recycling Units . | . . . Scanalyzers . | . . . Garrison Access . | . . . Terminal Hacks 5 | . 5 . Robot Analysis 2 | . 2 . Prototype ID Bank 1 | . 1 . Emergency Access Points 1 | . 1 . Recall Reinforcements 1 | . 1 . Fabricator Hacks . | . . . Repair Station Hacks 2 | . 2 . Scan Component 1 | . 1 . Repair 1 | . 1 . Recycling Unit Hacks . | . . . Scanalyzer . | . . . Garrison Access Hacks . | . . . Unauthorized Hacks . | . . . Terminals . | . . . Fabricators . | . . . Repair Stations . | . . . Recycling Units . | . . . Scanalyzers . | . . . Garrison Access . | . . . Data Cores Recovered . | . . . Used . | . . . Hacking Detections 4 | . 4 . Full Trace Events 1 | . 1 . Feedback Events . | . . . Feedback Blocked . | . . . Robot Schematics Acquired . | . . . Robots Built . | . . . Authchips . | . . . Time . | . . . Total Robot Build Rating . | . . . Part Schematics Acquired . | . . . Parts Built . | . . . Authchips . | . . . Time . | . . . Total Part Build Rating . | . . . Parts Repaired 1 | . 1 . Time 18 | . 18 . Parts Recycled . | . . . Recycled Matter . | . . . Retrieved Matter . | . . . Retrieved Components . | . . . Parts Scanalyzed . | . . . Part Schematics Acquired . | . . . Parts Damaged . | . . . Bothacking | -11 -10 -10 ------------ Run | Yrd Mat Sub Used RIF Installer . | . . . Robots Hacked . | . . . Non-combat . | . . . Combat . | . . . Robot Hacks Applied . | . . . Relay Couplers Released . | . . . Fabnet Peak Effective % . | . . . Robots Rewired . | . . . Allies Hacked . | . . . Hacks Repelled . | . . . Allies | -11 -10 -10 -------- Run | Yrd Mat Sub Total Allies . | . . . Largest Group . | . . . Highest-Rated Group . | . . . Highest-Rated Ally . | . . . Total Orders . | . . . Ally Attacks . | . . . Total Damage . | . . . Kills . | . . . Allies Corrupted . | . . . Allies Melted . | . . . Intel | -11 -10 -10 ------- Run | Yrd Mat Sub Robot Analysis Total 2 | . 2 . Derelict Logs Recovered 1 | . . 1 Drone Launches . | . . . Drone Recoveries . | . . . Exploration | -11 -10 -10 ------------- Run | Yrd Mat Sub Turns Passed 2191 | 118 1510 563 Spaces Moved 1082 | 54 737 291 Core 6 | 6 . . Treads 1076 | 48 737 291 Legs . | . . . Wheels . | . . . Hover . | . . . Flight . | . . . Fastest Speed 50 | 50 160 160 Average Speed 159 | 147 160 160 Slowest Speed 160 | 160 160 160 Overloaded Moves . | . . . Propulsion Burnouts . | . . . Robots Hopped . | . . . Cave-ins Triggered . | . . . Exploration Rate (%) 39 | 4 91 23 Regions Visited 2 Branch Regions 1 Pre-discovered Areas 2 | . . 2 Known Exits Taken . | . . . Unknown Exits Taken 2 | 1 1 . Scrap Searched . | . . . Spaces Dug 6 | . . 6 Terrain Destroyed 26 | . 2 24 Melee . | . . . Projectile . | . . . AOE 26 | . 2 24 Terrain Rammed . | . . . Walls Destroyed . | . . . Machines Disabled . | . . . Actions | -11 -10 -10 --------- Run | Yrd Mat Sub Total 1400 | 71 972 357 Wait 194 | . 157 37 Move 1080 | 53 736 291 Hop . | . . . Pick Up 17 | 2 11 4 Fast Attach 11 | 7 4 . Attach 3 | . 1 2 Detach 1 | . 1 . Swap 8 | . 2 6 Drop 6 | . 6 . Fire 75 | 9 49 17 Melee . | . . . Ram . | . . . Kick . | . . . Crush 5 | . 5 . Escape Stasis . | . . . Rewire . | . . . Trap . | . . . Miscellaneous . | . . . Route ------- -11/Scrapyard -10/Materials (discovered 5 exits: [*Mat x3] / [*Min] / [*Sub]) -10/Subcaves (discovered 2 exits: *Mat x2) History --------- Turn | Location | Event 11 | -11/Scrapyard | Discovered new exit (range 13) 119 | -11/Scrapyard | Entered Materials 245 | -10/Materials | Discovered new exit (range 8) 304 | -10/Materials | Build established: Mutant 590 | -10/Materials | Discovered new exit (range 16) 800 | -10/Materials | Repaired Broken Lgt. Treads 1038 | -10/Materials | Discovered new exit (range 7) 1363 | -10/Materials | Discovered new exit (range 5) 1625 | -10/Materials | Discovered new exit (range 4) 1629 | -10/Materials | Entered Subcaves 1629 | -10/Subcaves | Learned location of Zion (-7) 1644 | -10/Subcaves | Met a Zionite searching for "candidates" 1676 | -10/Subcaves | Discovered new exit (range 9) 1734 | -10/Subcaves | Identified exit to Materials 1743 | -10/Subcaves | Shifting Twisted Machinery released Sub. Optics 1764 | -10/Subcaves | Core integrity fell below 50% 1819 | -10/Subcaves | Discovered exit to Materials (range 5) 2055 | -10/Subcaves | A swath of the cavern ceiling suddenly collapsed 2183 | -10/Subcaves | Core integrity fell below 20% 2192 | -10/Subcaves | Destroyed by EU-DAR(R) with Subdweller Machine Gun Last Messages --------------- 01730_ Acquired 5 matter. 01734_ EXIT=IDENTIFIED: MATERIALS 01738_ The unstable cave ceiling collapses. Sub. Optics falls loose from the Twisted Machinery. 01744_ HJ-UTT(R): "MADSUB!" 01777_ Sub. Optics fried. 01777_ HJ-UTT(R) destroyed. 01779_ Subatomizers dissect the Corrupted Disposable Heat Sink. 01781_ Acquired 60 matter. 01792_ Subatomizers dissect the Corrupted Disposable Heat Sink. 01810_ Acquired Sub. Optics. 01816_ Subatomizers dissect the Corrupted Disposable Heat Sink. 01819_ EXIT=FOUND: MATERIALS 02036_ Y7-88N(R) destroyed. 02042_ Acquired Sub. Optics. A swath of the cavern ceiling suddenly collapses. 02064_ Acquired Sub. Laser. 02168_ The unstable cave ceiling collapses. 02184_ Lgt. Treads destroyed. 02186_ EM Shotgun destroyed. Map ----- +----------------------------------------------------+ | ##?# ##?# #?### #????## ## #??????? | | ### #??# ### ####### #####??????? | | # ## ##??# ## ## # # #????????? | | # #???## ## ####??????? | | # #????#### #??????? | | # #???????## ### "##??????? | | #### ##?######## ##?###"##???????? | | #??####### #### ####????#""#???????? | | % ###???# ##??###???????"""#???????? | | #???## #?????????????" "#???????? | | ##???## ########?????????????""""???????? | | #????#####?####???????????????#""????????? | | ######??????????# ##?????????????????????????? | | #???????????????# ####??????????????????????? | | #???????????????## #??????????????????????? | | ####?????????????# #??????????????????????? | | # ## ##??????????### ##??????????????????????? | | ##### #?????###### ##??????????????????????? | | #### ##???## ## ##?????????????????????? | | ## #???# #?????????????????????? | | ## ###?# #?????????????????????? | | ## ### ###?????????????????????? | | ## ##??????????????????????? | | #### ####### #???????????? | | " # % ##?## R #???????????? | | "## ""# #??# # @R "#??????????? | | "#"""""##"## #??####"# "# "" ?????????? | | ##"####"#### ####?????###### " ??????????? | | ####???"#??###??????????????? "" ??????????? | | # #???"#????????????????????? " ???????????? | | # #????#?????????????????????? ####???????????? | | ?# #?????????????????????????? #??????????????? | | ?? ??????????????????????????? "" ?????????????? | | ??? ???????????????????????????" ?????????????? | | ???? ??????????????????????????? ??????????????? | | ?????????????????????????????????????????????????? | | ?????????????????????????????????????????????????? | | ?????????????????????????????????????????????????? | | ?????????????????????????????????????????????????? | | ?????????????????????????????????????????????????? | | ?????????????????????????????????????????????????? | | ?????????????????????????????????????????????????? | | ?????????????????????????????????????????????????? | | ?????????????????????????????????????????????????? | | ?????????????????????????????????????????????????? | | ?????????????????????????????????????????????????? | | ?????????????????????????????????????????????????? | | ?????????????????????????????????????????????????? | | ?????????????????????????????????????????????????? | | ?????????????????????????????????????????????????? | +----------------------------------------------------+ Best States ------------- Heat Dissipation 25 Energy Generation 10 Energy Capacity 250 Matter Stores 300 Matter Capacity 300 Sight Range 16 Terrain Scan Density 10 Evasion (%) 40 Recoil Reduction 2 Item Schematics ----------------- None Robot Schematics ------------------ None Fabricated ------------ Nothing Alien Tech Used ----------------- None Achievements -------------- None Challenges ------------ None Game ------ Seed LightThermalWarhead Manual? 0 Play Time 00:22:31 Cumulative 114.5 hours Start 2024.09.12 @ 09:09:56 End 2024.09.12 @ 09:35:07 Sessions 1 Manual Loads 0 Difficulty Rogue Special Mode None Game No. 82 Rogue 82 Adventurer 0 Explorer 0 Win Type - Total 3 Types 3/0/0/0/0/0/0/0/0 Lore% 38 Gallery% 50 Achievement% 46 Wizard Run 0 Options --------- Layout 0 ASCII 0 Keyboard 1 Movement Numpad Keybinds 0 Fullscreen 1 Font 18/SmallcapsGlow Map View 76x50 Zoom Use 0% Tactical HUD 1 Map Filters NONE Filters NONE Steam 1 RUN: a5ea196f-21dd-4c2b-9dfc-bf3c1324743f